[Event "Romanian-ch Youth Open U10 2024"]
[Site "Eforie Nord"]
[Date "2024.04.15"]
[Round "5.1"]
[White "Mistrekov, Dobrynia"]
[Black "Varabiescu, Petru"]
[Result "1-0"]
[ECO "B29"]
[WhiteElo "1562"]
[BlackElo "1791"]
[Annotator "NA RC"]
[PlyCount "103"]
[EventDate "2024.04.10"]
[EventType "swiss"]
[EventCountry "ROU"]
[SourceTitle "playchess.com"]
[Source "ChessBase"]
[SourceQuality "1"]
[TimeControl "5400+30"]

1. e4 {[%emt 0:00:06]} c5 {[%emt 0:00:07]} 2. Nf3 {[%emt 0:00:19]} Nf6 {[%emt 0:00:08]} 3. Nc3 {[%emt 0:00:21]} d5 {[%emt 0:00:08]} 4. exd5 {[%emt 0:00:52]} Nxd5 {[%emt 0:00:09]} 5. Nxd5 {[%emt 0:00:24]} Qxd5 {[%emt 0:00:12]} 6. c4 {[%emt 0:01:03]} Qd8 {[%emt 0:02:45]} 7. b3 {[%emt 0:00:23]} Nc6 {[%emt 0:00:35]} 8. Bb2 {[%emt 0:00:34]} Bg4 {[%emt 0:03:36]} 9. Be2 {[%emt 0:01:57]} Qc7 {[%emt 0:03:19]} 10. O-O {[%emt 0:00:40]} e5 {[%emt 0:12:42]} 11. Nxe5 {[%emt 0:01:10]} Bxe2 {[%emt 0:01:16]} 12. Qxe2 {[%emt 0:00:11]} Nxe5 {[%emt 0:02:23]} 13. Bxe5 {[%emt 0:00:10]} Qe7 {[%emt 0:00:31]} 14. Qf3 {[%emt 0:00:54]} O-O-O {[%emt 0:04:02]} 15. Rfe1 {[%emt 0:00:39]} Qd7 {[%emt 0:08:18]} 16. Bc3 {[%emt 0:00:55]} f6 {[%emt 0:02:22]} 17. Ba5 {[%emt 0:01:15]} Re8 {[%emt 0:01:36]} 18. Rxe8+ {[%emt 0:04:11]} Qxe8 {[%emt 0:00:06]} 19. Rd1 {[%emt 0:02:54]} Bd6 {[%emt 0:10:14]} 20. d4 {[%emt 0:03:49]} cxd4 {[%emt 0:03:41]} 21. Qg4+ {[%emt 0:00:36]} Kb8 {[%emt 0:00:28]} 22. Qxd4 {[%emt 0:00:43]} Be5 {[%emt 0:02:58]} 23. Qd5 {[%emt 0:01:26]} b6 {[%emt 0:18:07]} 24. Bb4 {[%emt 0:00:30]} Bc7 {[%emt 0:01:35]} 25. c5 {[%emt 0:00:53]} bxc5 {[%emt 0:16:19]} 26. Bxc5 {[%emt 0:00:30]} Qe2 {[%emt 0:00:53]} 27. Bd6 {[%emt 0:01:50]} Rc8 {[%emt 0:02:07]} 28. Rc1 {[%emt 0:01:19]} Qe8 {[%emt 0:02:13]} 29. Bxc7+ {[%emt 0:00:49]} Rxc7 {[%emt 0:00:08]} 30. Qd6 {[%emt 0:00:15]} Qc8 {[%emt 0:00:47]} 31. Kf1 {[%emt 0:00:54]} Kb7 {[%emt 0:00:27]} 32. Rxc7+ {[%emt 0:00:09]} Qxc7 {[%emt 0:00:08]} 33. Qxc7+ {[%emt 0:00:04]} Kxc7 {[%emt 0:00:07]} 34. Ke2 {[%emt 0:00:04]} Kb6 {[%emt 0:00:18]} 35. Kd3 {[%emt 0:00:06]} Kc5 {[%emt 0:00:52]} 36. a3 {[%emt 0:00:05]} a6 {[%emt 0:00:16]} 37. f4 {[%emt 0:00:15]} f5 {[%emt 0:00:25]} 38. h3 {[%emt 0:00:22]} h5 {[%emt 0:00:24]} 39. h4 {[%emt 0:00:18]} a5 {[%emt 0:00:43]} 40. b4+ {[%emt 0:00:23]} axb4 {[%emt 0:00:25]} 41. axb4+ {[%emt 0:00:03]} Kxb4 {[%emt 0:00:10]} 42. Kd4 {[%emt 0:00:04]} g6 {[%emt 0:01:02]} 43. Ke5 {[%emt 0:00:05]} Kc4 {[%emt 0:01:38]} 44. Kf6 {[%emt 0:00:16]} Kd4 {[%emt 0:00:13]} 45. Kxg6 {[%emt 0:00:07]} Ke4 {[%emt 0:00:06]} 46. Kg5 {[%emt 0:00:05]} Ke3 {[%emt 0:00:08]} 47. Kxf5 {[%emt 0:00:06]} Kf2 {[%emt 0:00:06]} 48. Kg5 {[%emt 0:00:09]} Kg3 {[%emt 0:00:07]} 49. f5 {[%emt 0:00:06]} Kxg2 {[%emt 0:00:06]} 50. f6 {[%emt 0:00:04]} Kg3 {[%emt 0:00:08]} 51. f7 {[%emt 0:00:04]} Kh3 {[%emt 0:00:09]} 52. f8=Q {[%emt 1:21:03]} 1-0

[Event "Romanian-ch Youth Open U10 2024"]
[Site "Eforie Nord"]
[Date "2024.04.15"]
[Round "5.2"]
[White "Cazacu, Iustin-Nicolas"]
[Black "Larion, Iustin"]
[Result "1/2-1/2"]
[ECO "A04"]
[WhiteElo "1857"]
[BlackElo "1743"]
[Annotator "NA RC"]
[PlyCount "108"]
[EventDate "2024.04.10"]
[EventType "swiss"]
[EventCountry "ROU"]
[SourceTitle "playchess.com"]
[Source "ChessBase"]
[SourceQuality "1"]
[TimeControl "5400+30"]

1. Nf3 {[%emt 0:00:15]} c5 {[%emt 0:00:11]} 2. g3 {[%emt 0:00:35]} Nc6 {[%emt 0:00:12]} 3. Bg2 {[%emt 0:01:14]} e5 {[%emt 0:00:11]} 4. e4 {[%emt 0:00:25]} g6 {[%emt 0:00:07]} 5. O-O {[%emt 0:02:59]} Bg7 {[%emt 0:00:03]} 6. c3 {[%emt 0:01:55]} Nge7 {[%emt 0:00:10]} 7. d3 {[%emt 0:03:17]} O-O {[%emt 0:01:29]} 8. h4 {[%emt 0:01:46]} d5 {[%emt 0:14:58]} 9. exd5 {[%emt 0:11:45]} Nxd5 {[%emt 0:00:08]} 10. Nbd2 {[%emt 0:02:19]} Bf5 {[%emt 0:15:43]} 11. Ne4 {[%emt 0:02:44]} c4 {[%emt 0:04:34]} 12. dxc4 {[%emt 0:01:43]} Bxe4 {[%emt 0:01:11]} 13. cxd5 {[%emt 0:00:07]} Qxd5 {[%emt 0:02:32]} 14. Be3 {[%emt 0:02:21]} Rad8 {[%emt 0:04:45]} 15. Qxd5 {[%emt 0:03:34]} Bxd5 {[%emt 0:01:40]} 16. Rfd1 {[%emt 0:02:51]} b6 {[%emt 0:05:40]} 17. Ng5 {[%emt 0:04:03]} Bxg2 {[%emt 0:01:35]} 18. Kxg2 {[%emt 0:00:38]} Ne7 {[%emt 0:05:57]} 19. Ne4 {[%emt 0:07:02]} Nd5 {[%emt 0:02:33]} 20. Bg5 {[%emt 0:00:11]} f6 {[%emt 0:00:43]} 21. c4 {[%emt 0:00:16]} fxg5 {[%emt 0:03:51]} 22. cxd5 {[%emt 0:00:41]} gxh4 {[%emt 0:00:31]} 23. gxh4 {[%emt 0:01:42]} Bh6 {[%emt 0:07:48]} 24. d6 {[%emt 0:09:33]} Rd7 {[%emt 0:01:22]} 25. Rd5 {[%emt 0:03:31]} Bf4 {[%emt 0:00:12]} 26. Rd3 {[%emt 0:05:06]} Kf7 {[%emt 0:02:53]} 27. Rc3 {[%emt 0:00:24]} Ke6 {[%emt 0:01:03]} 28. a4 {[%emt 0:00:28]} g5 {[%emt 0:01:25]} 29. hxg5 {[%emt 0:00:40]} Rg8 {[%emt 0:00:35]} 30. Rh1 {[%emt 0:08:18]} Bxg5 {[%emt 0:01:58]} 31. Rg3 {[%emt 0:00:29]} Rdg7 {[%emt 0:00:31]} 32. Nxg5+ {[%emt 0:01:45]} Rxg5 {[%emt 0:00:17]} 33. Rxh7 {[%emt 0:00:49]} Rxg3+ {[%emt 0:00:19]} 34. fxg3 {[%emt 0:00:08]} Kxd6 {[%emt 0:00:39]} 35. Rxa7 {[%emt 0:00:18]} Rg4 {[%emt 0:03:36]} 36. Ra6 {[%emt 0:01:18]} Kc7 {[%emt 0:01:05]} 37. a5 {[%emt 0:00:52]} bxa5 {[%emt 0:01:16]} 38. Rxa5 {[%emt 0:00:13]} Rb4 {[%emt 0:00:33]} 39. Rxe5 {[%emt 0:00:11]} Rxb2+ {[%emt 0:00:15]} 40. Kf3 {[%emt 0:00:03]} Kd6 {[%emt 0:00:45]} 41. Re3 {[%emt 0:00:22]} Rb8 {[%emt 0:00:40]} 42. g4 {[%emt 0:01:00]} Rg8 {[%emt 0:01:15]} 43. Kg3 {[%emt 0:00:11]} Kd5 {[%emt 0:00:16]} 44. Re1 {[%emt 0:00:34]} Kd6 {[%emt 0:00:56]} 45. Kf4 {[%emt 0:00:43]} Rf8+ {[%emt 0:00:09]} 46. Kg5 {[%emt 0:00:06]} Rg8+ {[%emt 0:00:06]} 47. Kh5 {[%emt 0:00:04]} Rh8+ {[%emt 0:00:09]} 48. Kg6 {[%emt 0:00:05]} Rg8+ {[%emt 0:00:06]} 49. Kf5 {[%emt 0:00:05]} Rf8+ {[%emt 0:00:16]} 50. Kg5 {[%emt 0:00:06]} Rg8+ {[%emt 0:00:08]} 51. Kf4 {[%emt 0:00:04]} Rf8+ {[%emt 0:00:06]} 52. Kg3 {[%emt 0:00:05]} Rg8 {[%emt 0:00:15]} 53. Re4 {[%emt 0:00:10]} Kd5 {[%emt 0:00:19]} 54. Re3 {[%emt 0:25:26]} Kd6 1/2-1/2

[Event "Romanian-ch Youth Open U10 2024"]
[Site "Eforie Nord"]
[Date "2024.04.15"]
[Round "5.3"]
[White "Kovacs, Balazs"]
[Black "Suteu, Catalin-Mihai"]
[Result "1-0"]
[ECO "C50"]
[WhiteElo "1866"]
[BlackElo "1528"]
[Annotator "NA RC"]
[PlyCount "97"]
[EventDate "2024.04.10"]
[EventType "swiss"]
[EventCountry "ROU"]
[SourceTitle "playchess.com"]
[Source "ChessBase"]
[SourceQuality "1"]
[TimeControl "5400+30"]

1. e4 {[%emt 0:00:03]} e5 {[%emt 0:00:12]} 2. Nf3 {[%emt 0:00:04]} Nc6 {[%emt 0:00:21]} 3. Bc4 {[%emt 0:00:09]} Bc5 {[%emt 0:00:21]} 4. O-O {[%emt 0:00:07]} Nf6 {[%emt 0:00:09]} 5. d4 {[%emt 0:00:04]} Bxd4 {[%emt 0:05:40]} 6. Nxd4 {[%emt 0:00:12]} Nxd4 {[%emt 0:01:11]} 7. f4 {[%emt 0:00:04]} Nc6 {[%emt 0:03:25]} 8. Bxf7+ {[%emt 0:04:32]} Kxf7 {[%emt 0:03:26]} 9. fxe5 {[%emt 0:00:09]} Nxe5 {[%emt 0:06:18]} 10. Qd5+ {[%emt 0:00:51]} Kf8 {[%emt 0:00:11]} 11. Qxe5 {[%emt 0:00:40]} d6 {[%emt 0:00:22]} 12. Qd4 {[%emt 0:02:02]} Qe7 {[%emt 0:05:14]} 13. Bg5 {[%emt 0:01:26]} Kf7 {[%emt 0:00:13]} 14. Nc3 {[%emt 0:01:19]} Be6 {[%emt 0:15:19]} 15. e5 {[%emt 0:04:24]} dxe5 {[%emt 0:08:26]} 16. Qxe5 {[%emt 0:00:17]} h6 {[%emt 0:12:30]} 17. Ne4 {[%emt 0:05:41]} Bc4 {[%emt 0:12:32]} 18. Bxf6 {[%emt 0:07:24]} Qxe5 {[%emt 0:00:40]} 19. Bxe5+ {[%emt 0:00:05]} Bxf1 {[%emt 0:00:11]} 20. Rxf1+ {[%emt 0:00:04]} Ke6 {[%emt 0:00:19]} 21. Bxg7 {[%emt 0:01:22]} Rh7 {[%emt 0:00:11]} 22. Rf6+ {[%emt 0:16:35]} Ke5 {[%emt 0:02:07]} 23. Rf8+ {[%emt 0:02:41]} Kxe4 {[%emt 0:00:08]} 24. Rxa8 {[%emt 0:00:04]} Rxg7 {[%emt 0:00:07]} 25. Rxa7 {[%emt 0:00:04]} b6 {[%emt 0:00:11]} 26. Kf2 {[%emt 0:04:50]} Rf7+ {[%emt 0:00:24]} 27. Ke2 {[%emt 0:00:19]} Rg7 {[%emt 0:00:14]} 28. Ra4+ {[%emt 0:00:11]} Ke5 {[%emt 0:00:12]} 29. g3 {[%emt 0:01:07]} Rg6 {[%emt 0:00:12]} 30. Ke3 {[%emt 0:00:18]} c5 {[%emt 0:00:13]} 31. Re4+ {[%emt 0:01:35]} Kf5 {[%emt 0:00:20]} 32. c3 {[%emt 0:08:07]} b5 {[%emt 0:00:16]} 33. a4 {[%emt 0:01:13]} bxa4 {[%emt 0:00:14]} 34. Rxa4 {[%emt 0:00:20]} Rb6 {[%emt 0:00:08]} 35. Ra5 {[%emt 0:00:33]} Rxb2 {[%emt 0:00:09]} 36. Rxc5+ {[%emt 0:00:05]} Kf6 {[%emt 0:00:08]} 37. h4 {[%emt 0:00:28]} Rg2 {[%emt 0:00:13]} 38. Kf3 {[%emt 0:01:33]} Rd2 {[%emt 0:00:08]} 39. Kg4 {[%emt 0:01:21]} Rd3 {[%emt 0:00:11]} 40. Kf4 {[%emt 0:05:08]} Kg6 {[%emt 0:00:22]} 41. Rc6+ {[%emt 0:00:24]} Kg7 {[%emt 0:00:33]} 42. c4 {[%emt 0:06:57]} Rd4+ {[%emt 0:01:11]} 43. Kf5 {[%emt 0:01:05]} Rd3 {[%emt 0:00:11]} 44. Rc7+ {[%emt 0:00:19]} Kg8 {[%emt 0:00:09]} 45. g4 {[%emt 0:00:52]} Rd4 {[%emt 0:00:35]} 46. g5 {[%emt 0:03:19]} h5 {[%emt 0:01:24]} 47. g6 {[%emt 0:01:54]} Rd6 {[%emt 0:00:26]} 48. Kg5 {[%emt 0:01:10]} Re6 {[%emt 0:00:08]} 49. Kh6 {[%emt 0:01:48]} 1-0

[Event "Romanian-ch Youth Open U10 2024"]
[Site "Eforie Nord"]
[Date "2024.04.15"]
[Round "5.4"]
[White "Pasca, Alexandru-Daniel"]
[Black "Albu, Tudor-Stefan"]
[Result "1-0"]
[ECO "B22"]
[WhiteElo "1623"]
[BlackElo "1443"]
[Annotator "NA RC"]
[PlyCount "69"]
[EventDate "2024.04.10"]
[EventType "swiss"]
[EventCountry "ROU"]
[SourceTitle "playchess.com"]
[Source "ChessBase"]
[SourceQuality "1"]
[TimeControl "5400+30"]

1. e4 {[%emt 0:00:05]} c5 {[%emt 0:00:30]} 2. c3 {[%emt 0:00:05]} e6 {[%emt 0:00:30]} 3. Nf3 {[%emt 0:00:57]} d5 {[%emt 0:02:29]} 4. exd5 {[%emt 0:03:00]} exd5 {[%emt 0:02:33]} 5. d4 {[%emt 0:00:40]} Nc6 {[%emt 0:02:27]} 6. Be2 {[%emt 0:03:00]} Nf6 {[%emt 0:04:54]} 7. O-O {[%emt 0:01:08]} Be6 {[%emt 0:04:42]} 8. Re1 {[%emt 0:02:30]} Bd6 {[%emt 0:05:20]} 9. Bg5 {[%emt 0:03:08]} O-O {[%emt 0:06:38]} 10. Nbd2 {[%emt 0:02:04]} Rc8 {[%emt 0:08:07]} 11. a3 {[%emt 0:08:22]} h6 {[%emt 0:06:52]} 12. Bh4 {[%emt 0:00:11]} Be7 {[%emt 0:01:53]} 13. Nf1 {[%emt 0:05:41]} cxd4 {[%emt 0:04:52]} 14. Nxd4 {[%emt 0:14:18]} Ne4 {[%emt 0:02:48]} 15. Bxe7 {[%emt 0:00:52]} Qxe7 {[%emt 0:01:12]} 16. Bf3 {[%emt 0:00:49]} f5 {[%emt 0:05:10]} 17. Ng3 {[%emt 0:06:36]} Ne5 {[%emt 0:03:57]} 18. Nge2 {[%emt 0:12:50]} g5 {[%emt 0:04:17]} 19. Nxe6 {[%emt 0:00:48]} Qxe6 {[%emt 0:00:07]} 20. Nd4 {[%emt 0:00:09]} Qf7 {[%emt 0:04:30]} 21. Bh5 {[%emt 0:10:26]} Qd7 {[%emt 0:02:13]} 22. f3 {[%emt 0:01:44]} Nf6 {[%emt 0:00:56]} 23. Rxe5 {[%emt 0:00:54]} Nxh5 {[%emt 0:00:30]} 24. Qb3 {[%emt 0:02:24]} Rc4 {[%emt 0:03:43]} 25. Rae1 {[%emt 0:01:26]} Rf7 {[%emt 0:01:36]} 26. Qb5 {[%emt 0:03:01]} Nf4 {[%emt 0:04:56]} 27. Qxd7 {[%emt 0:00:44]} Rxd7 {[%emt 0:00:08]} 28. Re8+ {[%emt 0:05:09]} Kf7 {[%emt 0:02:25]} 29. Nxf5 {[%emt 0:11:59]} Kg6 {[%emt 0:01:07]} 30. Nd4 {[%emt 0:00:00]} Kf7 {[%emt 0:01:25]} 31. g3 {[%emt 0:00:00]} Nd3 {[%emt 0:01:01]} 32. R1e6 {[%emt 0:00:00]} Nc5 {[%emt 0:00:32]} 33. Re2 {[%emt 0:00:00]} Nd3 {[%emt 0:01:57]} 34. R8e3 {[%emt 0:00:00]} Nc5 {[%emt 0:01:41]} 35. b3 {[%emt 0:00:00]} 1-0

[Event "Romanian-ch Youth Open U10 2024"]
[Site "Eforie Nord"]
[Date "2024.04.16"]
[Round "6.1"]
[White "Larion, Iustin"]
[Black "Mistrekov, Dobrynia"]
[Result "1-0"]
[ECO "A48"]
[WhiteElo "1743"]
[BlackElo "1562"]
[Annotator "NA RC"]
[PlyCount "97"]
[EventDate "2024.04.10"]
[EventType "swiss"]
[EventCountry "ROU"]
[SourceTitle "playchess.com"]
[Source "ChessBase"]
[SourceQuality "1"]
[TimeControl "5400+30"]

1. d4 {[%emt 0:00:04]} Nf6 {[%emt 0:00:16]} 2. Nf3 {[%emt 0:00:11]} g6 {[%emt 0:00:32]} 3. Nbd2 {[%emt 0:00:06]} d5 {[%emt 0:00:34]} 4. e3 {[%emt 0:00:10]} Bg7 {[%emt 0:00:44]} 5. b4 {[%emt 0:00:06]} O-O {[%emt 0:00:58]} 6. Be2 {[%emt 0:00:19]} Nbd7 {[%emt 0:02:00]} 7. O-O {[%emt 0:03:01]} Re8 {[%emt 0:01:38]} 8. Bb2 {[%emt 0:01:06]} c6 {[%emt 0:00:59]} 9. c4 {[%emt 0:00:52]} e6 {[%emt 0:01:37]} 10. Rc1 {[%emt 0:17:34]} Nh5 {[%emt 0:05:30]} 11. Qb3 {[%emt 0:06:53]} Nb6 {[%emt 0:00:50]} 12. Rfd1 {[%emt 0:07:50]} f5 {[%emt 0:01:27]} 13. Ne5 {[%emt 0:07:21]} Nf6 {[%emt 0:02:32]} 14. b5 {[%emt 0:03:28]} cxb5 {[%emt 0:01:18]} 15. cxb5 {[%emt 0:00:12]} Nfd7 {[%emt 0:00:30]} 16. f4 {[%emt 0:02:45]} Nxe5 {[%emt 0:01:49]} 17. dxe5 {[%emt 0:00:18]} Bd7 {[%emt 0:01:05]} 18. Bd4 {[%emt 0:04:06]} Bf8 {[%emt 0:02:35]} 19. a4 {[%emt 0:04:15]} Nc8 {[%emt 0:06:05]} 20. Rc2 {[%emt 0:04:02]} a6 {[%emt 0:01:15]} 21. bxa6 {[%emt 0:05:21]} bxa6 {[%emt 0:01:00]} 22. Nf3 {[%emt 0:04:28]} Qa5 {[%emt 0:00:50]} 23. Ra1 {[%emt 0:02:11]} Ne7 {[%emt 0:03:48]} 24. Bb6 {[%emt 0:01:14]} Rab8 {[%emt 0:00:52]} 25. Rb2 {[%emt 0:00:41]} Rxb6 {[%emt 0:05:39]} 26. Qxb6 {[%emt 0:00:09]} Qc3 {[%emt 0:00:28]} 27. Qb3 {[%emt 0:00:35]} Qa5 {[%emt 0:00:33]} 28. Nd4 {[%emt 0:02:03]} g5 {[%emt 0:01:16]} 29. Qd3 {[%emt 0:09:11]} gxf4 {[%emt 0:01:19]} 30. exf4 {[%emt 0:00:33]} Ng6 {[%emt 0:00:13]} 31. g3 {[%emt 0:01:45]} Bc5 {[%emt 0:00:33]} 32. Kh1 {[%emt 0:01:35]} Ba7 {[%emt 0:03:42]} 33. Rb7 {[%emt 0:03:33]} Bxd4 {[%emt 0:00:49]} 34. Qxd4 {[%emt 0:00:12]} Bc6 {[%emt 0:01:03]} 35. Rb6 {[%emt 0:00:41]} Ba8 {[%emt 0:00:24]} 36. Rxa6 {[%emt 0:01:45]} Qc7 {[%emt 0:00:17]} 37. a5 {[%emt 0:00:37]} Ne7 {[%emt 0:00:45]} 38. Rxe6 {[%emt 0:01:07]} Qd7 {[%emt 0:00:11]} 39. Rd6 {[%emt 0:00:41]} Qc7 {[%emt 0:00:50]} 40. Bf3 {[%emt 0:00:41]} Qb7 {[%emt 0:02:05]} 41. Rd1 {[%emt 0:00:47]} Qb3 {[%emt 0:00:50]} 42. Qd3 {[%emt 0:00:42]} Qa2 {[%emt 0:00:35]} 43. Rxd5 {[%emt 0:00:51]} Nc6 {[%emt 0:00:52]} 44. Rd6 {[%emt 0:02:01]} Nb4 {[%emt 0:01:49]} 45. Bxa8 {[%emt 0:00:21]} Rxa8 {[%emt 0:00:28]} 46. Rd8+ {[%emt 0:00:21]} Rxd8 {[%emt 0:00:23]} 47. Qxd8+ {[%emt 0:00:09]} Kg7 {[%emt 0:00:33]} 48. Qf6+ {[%emt 0:00:07]} Kg8 {[%emt 0:00:13]} 49. Rd8# {[%emt 0:00:06]} 1-0

[Event "Romanian-ch Youth Open U10 2024"]
[Site "Eforie Nord"]
[Date "2024.04.16"]
[Round "6.2"]
[White "Varabiescu, Petru"]
[Black "Cazacu, Iustin-Nicolas"]
[Result "0-1"]
[ECO "B22"]
[WhiteElo "1791"]
[BlackElo "1857"]
[Annotator "NA RC"]
[PlyCount "84"]
[EventDate "2024.04.10"]
[EventType "swiss"]
[EventCountry "ROU"]
[SourceTitle "playchess.com"]
[Source "ChessBase"]
[SourceQuality "1"]
[TimeControl "5400+30"]

1. e4 {[%emt 0:00:01]} c5 {[%emt 0:00:16]} 2. Nf3 {[%emt 0:00:12]} Nc6 {[%emt 0:00:09]} 3. Bc4 {[%emt 0:00:10]} e5 {[%emt 0:00:23]} 4. c3 {[%emt 0:00:46]} Nf6 {[%emt 0:02:15]} 5. d3 {[%emt 0:07:57]} Be7 {[%emt 0:01:34]} 6. O-O {[%emt 0:00:52]} O-O {[%emt 0:01:31]} 7. a3 {[%emt 0:03:43]} a6 {[%emt 0:06:38]} 8. Re1 {[%emt 0:04:16]} d6 {[%emt 0:03:12]} 9. h3 {[%emt 0:06:08]} Be6 {[%emt 0:02:11]} 10. Bxe6 {[%emt 0:03:03]} fxe6 {[%emt 0:00:26]} 11. Qb3 {[%emt 0:01:58]} Qd7 {[%emt 0:00:10]} 12. Bg5 {[%emt 0:07:35]} Nh5 {[%emt 0:04:30]} 13. Nbd2 {[%emt 0:11:52]} b5 {[%emt 0:05:06]} 14. Rad1 {[%emt 0:08:13]} Bxg5 {[%emt 0:06:20]} 15. Nxg5 {[%emt 0:00:09]} Rf6 {[%emt 0:00:23]} 16. Qc2 {[%emt 0:23:28]} Rg6 {[%emt 0:05:02]} 17. h4 {[%emt 0:03:54]} h6 {[%emt 0:01:07]} 18. Nh3 {[%emt 0:00:58]} Rf8 {[%emt 0:01:45]} 19. Nf3 {[%emt 0:02:10]} Rxf3 {[%emt 0:00:11]} 20. Qe2 {[%emt 0:00:08]} Qf7 {[%emt 0:00:20]} 21. Ng5 {[%emt 0:00:38]} hxg5 {[%emt 0:00:54]} 22. Qxf3 {[%emt 0:00:11]} Qxf3 {[%emt 0:00:55]} 23. gxf3 {[%emt 0:00:05]} gxh4+ {[%emt 0:00:16]} 24. Kh2 {[%emt 0:01:02]} h3 {[%emt 0:00:25]} 25. Rg1 {[%emt 0:01:01]} Rf6 {[%emt 0:00:30]} 26. Kxh3 {[%emt 0:00:58]} g6 {[%emt 0:01:10]} 27. Kg2 {[%emt 0:04:18]} Kg7 {[%emt 0:00:51]} 28. Rh1 {[%emt 0:01:25]} d5 {[%emt 0:02:04]} 29. b4 {[%emt 0:01:35]} cxb4 {[%emt 0:01:02]} 30. cxb4 {[%emt 0:00:20]} Nd4 {[%emt 0:00:12]} 31. Rc1 {[%emt 0:01:21]} Nf4+ {[%emt 0:00:23]} 32. Kf1 {[%emt 0:00:57]} Rf7 {[%emt 0:00:31]} 33. Rc8 {[%emt 0:01:05]} Nh5 {[%emt 0:00:32]} 34. Ra8 {[%emt 0:02:18]} Rxf3 {[%emt 0:00:13]} 35. Rxa6 {[%emt 0:00:15]} Ng3+ {[%emt 0:00:06]} 36. Kg2 {[%emt 0:00:10]} Nxh1 {[%emt 0:00:07]} 37. Ra7+ {[%emt 0:00:11]} Rf7 {[%emt 0:01:19]} 38. Rxf7+ {[%emt 0:00:02]} Kxf7 {[%emt 0:00:04]} 39. Kxh1 {[%emt 0:00:12]} Nc2 {[%emt 0:00:10]} 40. exd5 {[%emt 0:00:05]} exd5 {[%emt 0:00:08]} 41. a4 {[%emt 0:00:12]} bxa4 {[%emt 0:00:16]} 42. b5 {[%emt 0:00:04]} a3 {[%emt 0:00:05]} 0-1

[Event "Romanian-ch Youth Open U10 2024"]
[Site "Eforie Nord"]
[Date "2024.04.16"]
[Round "6.3"]
[White "Pasca, Alexandru-Daniel"]
[Black "Kovacs, Balazs"]
[Result "0-1"]
[ECO "C45"]
[WhiteElo "1623"]
[BlackElo "1866"]
[Annotator "NA RC"]
[PlyCount "58"]
[EventDate "2024.04.10"]
[EventType "swiss"]
[EventCountry "ROU"]
[SourceTitle "playchess.com"]
[Source "ChessBase"]
[SourceQuality "1"]
[TimeControl "5400+30"]

1. e4 {[%emt 0:00:03]} e5 {[%emt 0:00:10]} 2. Nf3 {[%emt 0:00:14]} Nc6 {[%emt 0:00:05]} 3. d4 {[%emt 0:00:04]} exd4 {[%emt 0:00:03]} 4. Nxd4 {[%emt 0:00:15]} Nf6 {[%emt 0:00:04]} 5. Nxc6 {[%emt 0:00:06]} bxc6 {[%emt 0:00:05]} 6. Bd3 {[%emt 0:00:06]} d5 {[%emt 0:00:06]} 7. exd5 {[%emt 0:00:14]} cxd5 {[%emt 0:00:08]} 8. O-O {[%emt 0:00:08]} Be7 {[%emt 0:00:13]} 9. c4 {[%emt 0:00:07]} d4 {[%emt 0:00:04]} 10. Bg5 {[%emt 0:01:00]} O-O {[%emt 0:01:15]} 11. Bxf6 {[%emt 0:01:05]} Bxf6 {[%emt 0:00:06]} 12. Nd2 {[%emt 0:00:05]} g6 {[%emt 0:01:14]} 13. b4 {[%emt 0:00:31]} a5 {[%emt 0:13:24]} 14. b5 {[%emt 0:13:22]} Bb7 {[%emt 0:15:57]} 15. Ne4 {[%emt 0:03:14]} Be7 {[%emt 0:02:12]} 16. a4 {[%emt 0:09:42]} f5 {[%emt 0:00:41]} 17. Nd2 {[%emt 0:00:49]} Bd6 {[%emt 0:08:20]} 18. f4 {[%emt 0:23:54]} Qh4 {[%emt 0:03:47]} 19. g3 {[%emt 0:01:42]} Qh3 {[%emt 0:00:12]} 20. Nf3 {[%emt 0:00:42]} g5 {[%emt 0:10:42]} 21. Qe2 {[%emt 0:06:52]} gxf4 {[%emt 0:03:43]} 22. gxf4 {[%emt 0:00:53]} Kh8 {[%emt 0:08:01]} 23. c5 {[%emt 0:11:06]} Rg8+ {[%emt 0:07:39]} 24. Kh1 {[%emt 0:01:04]} Bxf4 {[%emt 0:02:26]} 25. c6 {[%emt 0:00:22]} Rae8 {[%emt 0:06:32]} 26. Qb2 {[%emt 0:04:52]} Bc8 {[%emt 0:03:41]} 27. Ra2 {[%emt 0:06:24]} Be3 {[%emt 0:02:25]} 28. Nxd4 {[%emt 0:01:24]} Qxf1+ {[%emt 0:00:33]} 29. Bxf1 {[%emt 0:00:07]} Rg1# {[%emt 0:00:07]} 0-1

[Event "Romanian-ch Youth Open U10 2024"]
[Site "Eforie Nord"]
[Date "2024.04.16"]
[Round "6.4"]
[White "Balan, Vladimir"]
[Black "Rosca, Dragos-Ioan"]
[Result "0-1"]
[ECO "D37"]
[WhiteElo "1628"]
[BlackElo "1557"]
[Annotator "NA RC"]
[PlyCount "106"]
[EventDate "2024.04.10"]
[EventType "swiss"]
[EventCountry "ROU"]
[SourceTitle "playchess.com"]
[Source "ChessBase"]
[SourceQuality "1"]
[TimeControl "5400+30"]

1. d4 {[%emt 0:00:05]} d5 {[%emt 0:00:04]} 2. c4 {[%emt 0:00:04]} e6 {[%emt 0:00:07]} 3. Nc3 {[%emt 0:00:13]} Nf6 {[%emt 0:00:08]} 4. Nf3 {[%emt 0:00:06]} Be7 {[%emt 0:00:10]} 5. Bf4 {[%emt 0:00:12]} O-O {[%emt 1:32:31]} 6. e3 {[%emt 0:00:12]} a6 {[%emt 0:00:00]} 7. c5 {[%emt 0:00:17]} Nbd7 {[%emt 0:00:00]} 8. b4 {[%emt 0:02:08]} Nh5 {[%emt 0:00:00]} 9. Bd3 {[%emt 0:00:41]} Nxf4 {[%emt 0:00:00]} 10. exf4 {[%emt 0:01:05]} Re8 {[%emt 0:00:00]} 11. O-O {[%emt 0:01:30]} c6 {[%emt 0:00:00]} 12. Qc2 {[%emt 0:03:38]} Nf8 {[%emt 0:00:00]} 13. Ne5 {[%emt 0:03:50]} f6 {[%emt 0:00:00]} 14. Nf3 {[%emt 0:00:12]} Qc7 {[%emt 0:00:00]} 15. g3 {[%emt 0:00:26]} Bd8 {[%emt 0:00:00]} 16. Rfe1 {[%emt 0:02:28]} Qe7 {[%emt 0:00:00]} 17. Nh4 {[%emt 0:01:31]} Bc7 {[%emt 0:00:00]} 18. a4 {[%emt 0:02:38]} b6 {[%emt 0:00:00]} 19. Nf3 {[%emt 0:01:43]} a5 {[%emt 0:00:00]} 20. b5 {[%emt 0:02:48]} bxc5 {[%emt 0:00:00]} 21. bxc6 {[%emt 0:00:39]} c4 {[%emt 0:00:00]} 22. Bf1 {[%emt 0:02:23]} Qd6 {[%emt 0:00:00]} 23. Nb5 {[%emt 0:00:20]} Qxc6 {[%emt 0:00:00]} 24. Bg2 {[%emt 0:04:24]} Ba6 {[%emt 0:00:00]} 25. Nxc7 {[%emt 0:00:29]} Qxc7 {[%emt 0:00:00]} 26. Qc3 {[%emt 0:00:03]} Nd7 {[%emt 0:00:00]} 27. Nd2 {[%emt 0:00:36]} Nb8 {[%emt 0:00:00]} 28. f5 {[%emt 0:01:35]} Bb7 {[%emt 0:00:00]} 29. Rxe6 {[%emt 0:00:42]} Rxe6 {[%emt 0:00:00]} 30. fxe6 {[%emt 0:00:06]} Ra6 {[%emt 0:00:00]} 31. Re1 {[%emt 0:00:39]} Kf8 {[%emt 0:00:00]} 32. Nb3 {[%emt 0:01:28]} Ke7 {[%emt 0:00:00]} 33. Nc5 {[%emt 0:00:29]} Rd6 {[%emt 0:00:00]} 34. Bh3 {[%emt 0:01:08]} Nc6 {[%emt 0:00:00]} 35. Qc2 {[%emt 0:01:03]} g6 {[%emt 0:00:00]} 36. Qc1 {[%emt 0:00:58]} Nxd4 {[%emt 0:00:00]} 37. Qc3 {[%emt 0:01:14]} Qxc5 {[%emt 0:00:00]} 38. Qe3 {[%emt 0:00:23]} g5 {[%emt 0:00:00]} 39. Rb1 {[%emt 0:00:39]} Rb6 {[%emt 0:00:00]} 40. Rd1 {[%emt 0:01:08]} Nb3 {[%emt 0:00:00]} 41. Qf3 {[%emt 0:00:52]} Kd8 {[%emt 0:00:00]} 42. Qxf6+ {[%emt 0:01:17]} Qe7 {[%emt 0:00:00]} 43. Qe5 {[%emt 0:00:45]} Rd6 {[%emt 0:00:00]} 44. Qh8+ {[%emt 0:02:17]} Kc7 {[%emt 0:00:00]} 45. Qc3 {[%emt 0:00:30]} Rxe6 {[%emt 0:00:00]} 46. Bxe6 {[%emt 0:00:23]} Qxe6 {[%emt 0:00:00]} 47. Rb1 {[%emt 0:01:41]} d4 {[%emt 0:00:00]} 48. Qc2 {[%emt 0:01:09]} Qc6 {[%emt 0:00:00]} 49. Kf1 {[%emt 0:04:14]} Qh1+ {[%emt 0:00:00]} 50. Ke2 {[%emt 0:00:05]} d3+ {[%emt 0:00:00]} 51. Qxd3 {[%emt 0:00:36]} cxd3+ {[%emt 0:00:00]} 52. Kxd3 {[%emt 0:00:07]} Qxb1+ {[%emt 0:00:00]} 53. Ke3 {[%emt 0:00:09]} Qe4# {[%emt 0:00:00]} 0-1